Workbook

Sheet Check
O1: Проверки прочности
B2: Position | C2: 90 | H2: Таблица значений | P2: 1 | Q2: 2 | R2: 3 | S2: 4 | T2: 5 | U2: 6 | V2: 7 | W2: 8
B3: Масса | C3: =VLOOKUP(C2,Сортамент1,4,TRUE) -> 22.26 | H3: № | I3: b | J3: t | K3: m | O3: M1 | P3: 812.449 | Q3: -4.813615 | R3: 4.900538 | S3: 0.787873 | T3: 1.39807 | U3: 0.803291 | V3: 0.421414 | W3: 1.75518e-07
B4: К-т запаса | C4: =1/C5 -> 1.088475 | D4: >=1,05 | H4: 1 | I4: 40 | J4: 2 | K4: 2.31 | O4: M2 | P4: 50000 | Q4: -1925.175 | R4: -1345.758 | S4: -1948.522 | T4: -1343.935 | U4: -1947.565 | V4: -1343.967 | W4: -1947.597
A5: Комб. Условие | C5: =MAX(X17:X20)+(1-C6) -> 0.918716553 | D5: <=1 | H5: 2 | I5: 40 | J5: 2.5 | K5: 2.82 | O5: N | P5: -28909.54 | Q5: -57055.35 | R5: -27636.73 | S5: -56976.16 | T5: -27667.43 | U5: -56983.21 | V5: -27666.79 | W5: -56982.96
A6: Доп.Условие | C6: =B30*B31 -> 1 | H6: 3 | I6: 40 | J6: 3 | K6: 3.3
H7: 4 | I7: 40 | J7: 3.5 | K7: 3.76 | O7: 5000 или 50000
A8: Все значения ниже зависят от D2 | H8: 5 | I8: 40 | J8: 4 | K8: 4.2
A9: fy | B9: 345000000 | H9: 6 | I9: 50 | J9: 2 | K9: 2.93 | P9: 1 | Q9: 2 | R9: 3 | S9: 4 | T9: 5 | U9: 6 | V9: 7 | W9: 8
A10: fu | B10: 490000000 | H10: 7 | I10: 50 | J10: 2.5 | K10: 3.6 | O10: N1 | P10: =IF(P5>=0,P5,0) -> 0 | Q10: 0 | R10: 0 | S10: 0 | T10: 0 | U10: 0 | V10: 0 | W10: 0
A11: Параметры профиля | H11: 8 | I11: 50 | J11: 3 | K11: 4.25 | O11: N2 | P11: =IF(P5<0,ABS(P5),0) -> 28909.54 | Q11: 57055.35 | R11: 27636.73 | S11: 56976.16 | T11: 27667.43 | U11: 56983.21 | V11: 27666.79 | W11: 56982.96
A12: b | B12: =VLOOKUP(C2,Сортамент1,2,TRUE) -> 150 | H12: 9 | I12: 50 | J12: 3.5 | K12: 4.86 | O12: M1 | P12: =ABS(P3) -> 812.449 | Q12: 4.813615 | R12: 4.900538 | S12: 0.787873 | T12: 1.39807 | U12: 0.803291 | V12: 0.421414 | W12: 1.75518e-07
A13: t | B13: =VLOOKUP(C2,Сортамент1,3,TRUE) -> 5 | H13: 10 | I13: 50 | J13: 4 | K13: 5.45 | O13: M2 | P13: 50000 | Q13: 1925.175 | R13: 1345.758 | S13: 1948.522 | T13: 1343.935 | U13: 1947.565 | V13: 1343.967 | W13: 1947.597
A14: b | B14: =B12/1000 -> 0.15 | H14: 11 | I14: 50 | J14: 4.5 | K14: 6.02
A15: t | B15: =B13/1000 -> 0.005 | H15: 12 | I15: 50 | J15: 5 | K15: 6.56 | X15: Максимальные значения
A16: r | B16: =B15*2 -> 0.01 | H16: 13 | I16: 50 | J16: 5.5 | K16: 7.07
A17: c | B17: =B14-2*(B15+B16) -> 0.12 | H17: 14 | I17: 50 | J17: 6 | K17: 7.56 | O17: N1 | P17: =P10/$B$34 -> 0 | Q17: 0 | R17: 0 | S17: 0 | T17: 0 | U17: 0 | V17: 0 | W17: 0 | X17: =MAX(P17:W17) -> 0
A18: A | B18: =B14^2-(B14-2*B15)^2 -> 0.0029 | H18: 15 | I18: 60 | J18: 2 | K18: 3.56 | O18: N2 | P18: =P11/$B$35 -> 0.02889509245 | Q18: 0.05702683658 | R18: 0.02762291854 | S18: 0.05694768616 | T18: 0.0276536032 | U18: 0.05695473263 | V18: 0.02765296352 | W18: 0.05695448276 | X18: =MAX(P18:W18) -> 0.05702683658
A19: Anet | B19: =B18 -> 0.0029 | H19: 16 | I19: 60 | J19: 2.5 | K19: 4.39 | O19: M1 | P19: =P12/$B$36 -> 0.01492820689 | Q19: 8.84469556e-05 | R19: 9.004410758e-05 | S19: 1.447663933e-05 | T19: 2.568860102e-05 | U19: 1.475993477e-05 | V19: 7.743200349e-06 | W19: 3.225025839e-12 | X19: =MAX(P19:W19) -> 0.01492820689
A20: ym0 | B20: 1 | H20: 17 | I20: 60 | J20: 3 | K20: 5.19 | O20: M2 | P20: 0.918716553 | Q20: 0.0353738028 | R20: 0.02472740302 | S20: 0.0358027883 | T20: 0.02469390661 | U20: 0.03578520407 | V20: 0.02469449459 | W20: 0.03578579205 | X20: =MAX(P20:W20) -> 0.918716553
A21: F1 | B21: =B15*(B14-2*B15) -> 0.0007 | H21: 18 | I21: 60 | J21: 3.5 | K21: 5.96
A22: F2 | B22: =B14/2*B15 -> 0.000375 | H22: 19 | I22: 60 | J22: 4 | K22: 6.71
A23: zc1 | B23: =(B14-B15)/2 -> 0.0725 | H23: 20 | I23: 60 | J23: 4.5 | K23: 7.43
A24: zc2 | B24: =B14/4 -> 0.0375 | H24: 21 | I24: 60 | J24: 5 | K24: 8.13
A25: S1 | B25: =B21*B23 -> 5.075e-05 | H25: 22 | I25: 60 | J25: 5.5 | K25: 8.8
A26: S2 | B26: =B22*B24 -> 1.40625e-05 | H26: 23 | I26: 60 | J26: 6 | K26: 9.45
A27: S | B27: =B25+2*B26 -> 7.8875e-05 | H27: 24 | I27: 70 | J27: 2 | K27: 4.19
A28: Wpl | B28: =2*B27 -> 0.00015775 | H28: 25 | I28: 70 | J28: 2.5 | K28: 5.17
A29: Class | B29: =B17/B15 -> 24 | H29: 26 | I29: 70 | J29: 3 | K29: 6.13
A30: Flange | B30: =IF(B17/B15<=72*B32,1,0) -> 1 | H30: 27 | I30: 70 | J30: 3.5 | K30: 7.06
A31: Web | B31: =IF(B17/B15<=33*B32,1,0) -> 1 | H31: 28 | I31: 70 | J31: 4 | K31: 7.97
A32: epsilon | B32: =(235000000/B9)^0.5 -> 0.8253238275 | H32: 29 | I32: 70 | J32: 4.5 | K32: 8.85
H33: 30 | I33: 70 | J33: 5 | K33: 9.7
A34: Tension | B34: =B18*B9/B20 -> 1000500 | H34: 31 | I34: 70 | J34: 5.5 | K34: 10.53
A35: Compression | B35: =B34 -> 1000500 | H35: 32 | I35: 70 | J35: 6 | K35: 11.33
A36: Bending | B36: =B28*B9/B20 -> 54423.75 | H36: 33 | I36: 70 | J36: 6.5 | K36: 11.82
H37: 34 | I37: 70 | J37: 7 | K37: 12.53
H38: 35 | I38: 80 | J38: 3 | K38: 7.07
H39: 36 | I39: 80 | J39: 3.5 | K39: 8.16
H40: 37 | I40: 80 | J40: 4 | K40: 9.22
H41: 38 | I41: 80 | J41: 4.5 | K41: 10.26
H42: 39 | I42: 80 | J42: 5 | K42: 11.27
H43: 40 | I43: 80 | J43: 5.5 | K43: 12.25
H44: 41 | I44: 80 | J44: 6 | K44: 13.21
H45: 42 | I45: 80 | J45: 6.5 | K45: 13.86
H46: 43 | I46: 80 | J46: 7 | K46: 14.72
H47: 44 | I47: 80 | J47: 7.5 | K47: 15.56
H48: 45 | I48: 80 | J48: 8 | K48: 16.36
H49: 46 | I49: 90 | J49: 3 | K49: 8.01
H50: 47 | I50: 90 | J50: 3.5 | K50: 9.26
H51: 48 | I51: 90 | J51: 4 | K51: 10.48
H52: 49 | I52: 90 | J52: 4.5 | K52: 11.67
H53: 50 | I53: 90 | J53: 5 | K53: 12.84
H54: 51 | I54: 90 | J54: 5.5 | K54: 13.98
H55: 52 | I55: 90 | J55: 6 | K55: 15.1
H56: 53 | I56: 90 | J56: 6.5 | K56: 15.9
H57: 54 | I57: 90 | J57: 7 | K57: 16.92
H58: 55 | I58: 90 | J58: 7.5 | K58: 17.91
H59: 56 | I59: 90 | J59: 8 | K59: 18.87
H60: 57 | I60: 100 | J60: 3 | K60: 8.96
H61: 58 | I61: 100 | J61: 3.5 | K61: 10.36
H62: 59 | I62: 100 | J62: 4 | K62: 11.73
H63: 60 | I63: 100 | J63: 4.5 | K63: 13.08
H64: 61 | I64: 100 | J64: 5 | K64: 14.41
H65: 62 | I65: 100 | J65: 5.5 | K65: 15.71
H66: 63 | I66: 100 | J66: 6 | K66: 16.98
H67: 64 | I67: 100 | J67: 6.5 | K67: 17.94
H68: 65 | I68: 100 | J68: 7 | K68: 19.12
H69: 66 | I69: 100 | J69: 7.5 | K69: 20.27
H70: 67 | I70: 100 | J70: 8 | K70: 21.39
H71: 68 | I71: 120 | J71: 3 | K71: 10.84
H72: 69 | I72: 120 | J72: 3.5 | K72: 12.56
H73: 70 | I73: 120 | J73: 4 | K73: 14.25
H74: 71 | I74: 120 | J74: 4.5 | K74: 15.91
H75: 72 | I75: 120 | J75: 5 | K75: 17.55
H76: 73 | I76: 120 | J76: 5.5 | K76: 19.16
H77: 74 | I77: 120 | J77: 6 | K77: 20.75
H78: 75 | I78: 120 | J78: 6.5 | K78: 22.03
H79: 76 | I79: 120 | J79: 7 | K79: 23.52
H80: 77 | I80: 120 | J80: 7.5 | K80: 24.98
H81: 78 | I81: 120 | J81: 8 | K81: 26.41
H82: 79 | I82: 140 | J82: 4 | K82: 16.76
H83: 80 | I83: 140 | J83: 4.5 | K83: 18.74
H84: 81 | I84: 140 | J84: 5 | K84: 20.69
H85: 82 | I85: 140 | J85: 5.5 | K85: 22.62
H86: 83 | I86: 140 | J86: 6 | K86: 24.52
H87: 84 | I87: 140 | J87: 6.5 | K87: 26.11
H88: 85 | I88: 140 | J88: 7 | K88: 27.91
H89: 86 | I89: 140 | J89: 7.5 | K89: 29.69
H90: 87 | I90: 140 | J90: 8 | K90: 31.43
H91: 88 | I91: 150 | J91: 4 | K91: 18.01
H92: 89 | I92: 150 | J92: 4.5 | K92: 20.15
H93: 90 | I93: 150 | J93: 5 | K93: 22.26
H94: 91 | I94: 150 | J94: 5.5 | K94: 24.34
H95: 92 | I95: 150 | J95: 6 | K95: 26.4
H96: 93 | I96: 150 | J96: 6.5 | K96: 28.15
H97: 94 | I97: 150 | J97: 7 | K97: 30.11
H98: 95 | I98: 150 | J98: 7.5 | K98: 32.04
H99: 96 | I99: 150 | J99: 8 | K99: 33.95
H100: 97 | I100: 160 | J100: 4 | K100: 19.27
H101: 98 | I101: 160 | J101: 4.5 | K101: 21.56
H102: 99 | I102: 160 | J102: 5 | K102: 23.83
H103: 100 | I103: 160 | J103: 5.5 | K103: 26.07
H104: 101 | I104: 160 | J104: 6 | K104: 28.29
H105: 102 | I105: 160 | J105: 6.5 | K105: 30.19
H106: 103 | I106: 160 | J106: 7 | K106: 32.31
H107: 104 | I107: 160 | J107: 7.5 | K107: 34.4
H108: 105 | I108: 160 | J108: 8 | K108: 36.46
H109: 106 | I109: 180 | J109: 5 | K109: 26.97
H110: 107 | I110: 180 | J110: 5.5 | K110: 29.52
H111: 108 | I111: 180 | J111: 6 | K111: 32.05
H112: 109 | I112: 180 | J112: 6.5 | K112: 34.27
H113: 110 | I113: 180 | J113: 7 | K113: 36.7
H114: 111 | I114: 180 | J114: 7.5 | K114: 39.11
H115: 112 | I115: 180 | J115: 8 | K115: 41.48
H116: 113 | I116: 180 | J116: 8.5 | K116: 43.83
H117: 114 | I117: 180 | J117: 9 | K117: 46.14
H118: 115 | I118: 180 | J118: 9.5 | K118: 48.43
H119: 116 | I119: 180 | J119: 10 | K119: 50.68
H120: 117 | I120: 200 | J120: 6 | K120: 35.82
H121: 118 | I121: 200 | J121: 6.5 | K121: 38.35
H122: 119 | I122: 200 | J122: 7 | K122: 41.1
H123: 120 | I123: 200 | J123: 7.5 | K123: 43.82
H124: 121 | I124: 200 | J124: 8 | K124: 46.51
H125: 122 | I125: 200 | J125: 8.5 | K125: 49.16
H126: 123 | I126: 200 | J126: 9 | K126: 51.79
H127: 124 | I127: 200 | J127: 9.5 | K127: 54.39
H128: 125 | I128: 200 | J128: 10 | K128: 56.96
H129: 126 | I129: 200 | J129: 10.5 | K129: 58.76
H130: 127 | I130: 200 | J130: 11 | K130: 61.2
H131: 128 | I131: 200 | J131: 11.5 | K131: 63.61
H132: 129 | I132: 200 | J132: 12 | K132: 65.99
H133: 130 | I133: 250 | J133: 6 | K133: 45.24
H134: 131 | I134: 250 | J134: 6.5 | K134: 48.56
H135: 132 | I135: 250 | J135: 7 | K135: 52.09
H136: 133 | I136: 250 | J136: 7.5 | K136: 55.59
H137: 134 | I137: 250 | J137: 8 | K137: 59.07
H138: 135 | I138: 250 | J138: 8.5 | K138: 62.51
H139: 136 | I139: 250 | J139: 9 | K139: 65.92
H140: 137 | I140: 250 | J140: 9.5 | K140: 69.31
H141: 138 | I141: 250 | J141: 10 | K141: 72.66
H142: 139 | I142: 250 | J142: 10.5 | K142: 75.25
H143: 140 | I143: 250 | J143: 11 | K143: 78.47
H144: 141 | I144: 250 | J144: 11.5 | K144: 81.67
H145: 142 | I145: 250 | J145: 12 | K145: 84.83
H146: 143 | I146: 300 | J146: 6 | K146: 54.66
H147: 144 | I147: 300 | J147: 6.5 | K147: 58.76
H148: 145 | I148: 300 | J148: 7 | K148: 63.08
H149: 146 | I149: 300 | J149: 7.5 | K149: 67.37
H150: 147 | I150: 300 | J150: 8 | K150: 71.63
H151: 148 | I151: 300 | J151: 8.5 | K151: 75.85
H152: 149 | I152: 300 | J152: 9 | K152: 80.05
H153: 150 | I153: 300 | J153: 9.5 | K153: 84.22
H154: 151 | I154: 300 | J154: 10 | K154: 88.36
H155: 152 | I155: 300 | J155: 10.5 | K155: 91.73
H156: 153 | I156: 300 | J156: 11 | K156: 95.74
H157: 154 | I157: 300 | J157: 11.5 | K157: 99.72
H158: 155 | I158: 300 | J158: 12 | K158: 103.7
